bitfinex/quotes_SOLUSD_20250829
["timestamp","ask_amount","ask_price","bid_price","bid_amount"]
[1756487172757,20.0,204.15,203.95,17.10374363]
[1756487172758,0.69,204.13,204.0,17.10374363]
[1756487172931,0.69,204.13,204.01,0.68]
[1756487173135,0.69,204.13,204.06,17.10374363]
[1756487173361,17.10374363,204.13,204.07,17.10374363]
[1756487173534,17.10374363,204.12,204.06,17.10374363]
[1756487173735,4.66136766,204.16,204.08,17.10374363]
[1756487173947,3.97136766,204.16,204.1,17.10374363]
[1756487174165,21.07511129,204.16,204.1,17.10374363]
[1756487174344,17.10374363,204.15,204.09,17.78374363]
[1756487174542,3.97136766,204.16,204.11,17.10374363]
[1756487174748,21.07511129,204.16,204.11,0.68]
[1756487174949,17.10374363,204.12,204.01,0.14216157]
[1756487175275,17.10374363,204.06,204.01,0.68]
[1756487175640,17.10374363,204.06,204.05,10.0]
[1756487175845,17.79374363,204.06,203.98,30.69933764]
[1756487176062,17.10374363,204.04,203.98,13.59559401]
[1756487176267,17.10374363,204.03,203.98,17.10374363]
[1756487176471,17.10374363,204.03,203.95,42.06]
[1756487176472,17.10374363,204.02,203.95,4.90297741]
[1756487176680,17.10374363,204.0,203.94,0.68]
[1756487176984,17.10374363,203.98,203.92,59.16374363]
[1756487177156,17.10374363,203.99,203.93,17.78374363]
[1756487177583,17.10374363,203.99,203.92,42.06]
[1756487177584,17.10374363,203.97,203.91,17.10374363]
[1756487178069,17.10374363,203.99,203.94,17.10374363]
[1756487178257,17.10374363,203.99,203.94,17.78374363]
[1756487178596,12.25128714,204.07,203.94,17.78374363]
[1756487178597,0.69,204.07,203.98,17.10374363]
[1756487178750,17.10374363,204.07,204.01,17.10374363]
[1756487179081,17.10374363,204.08,204.0,13.59559401]
[1756487179287,17.10374363,204.09,204.03,17.10374363]
[1756487179463,17.10374363,204.09,204.01,0.68]
[1756487179464,17.10374363,204.09,204.05,4.90075961]
[1756487179655,17.10374363,204.1,204.05,4.90075961]
[1756487179854,17.10374363,204.12,204.07,17.10374363]
[1756487180079,17.10374363,204.12,204.06,17.10374363]
[1756487180388,17.10374363,204.07,204.02,17.10374363]
[1756487180552,17.10374363,204.07,204.01,17.10374363]
[1756487180967,17.10374363,204.08,204.02,17.10374363]
[1756487181180,17.10374363,204.09,204.03,17.10374363]
[1756487181381,0.69,204.12,203.95,42.86]
[1756487181382,17.10374363,204.04,203.95,42.86]
[1756487181588,17.10374363,204.04,203.97,4.90268176]
[1756487181788,0.69,204.07,203.99,17.10374363]
[1756487182078,0.69,204.07,204.0,17.10374363]
[1756487182281,0.69,204.13,204.06,17.10374363]
[1756487182491,0.69,204.16,204.08,17.10374363]
[1756487182788,17.10374363,204.11,204.06,10.0]
[1756487182992,17.10374363,204.11,204.05,17.10374363]
[1756487183286,17.10374363,204.09,204.03,17.10374363]
[1756487184197,17.10374363,204.08,204.03,17.10374363]
[1756487184485,17.10374363,204.04,203.99,17.10374363]
[1756487184693,17.10374363,204.04,203.98,17.78374363]
[1756487185069,17.10374363,204.04,203.99,17.10374363]
[1756487185476,17.10374363,204.05,203.99,17.78374363]
[1756487185674,17.10374363,204.05,204.0,4.90196078]
[1756487185985,12.24649896,204.14,204.01,17.78374363]
[1756487186277,17.10374363,204.09,204.03,17.10374363]
[1756487186483,17.10374363,204.1,204.04,17.10374363]
[1756487186682,3.56938476,204.09,204.04,17.10374363]
[1756487186853,17.10374363,204.1,204.04,17.10374363]
[1756487187169,3.5686064,204.09,204.04,17.10374363]
[1756487187372,17.10374363,204.1,204.05,4.90075961]
[1756487187566,3.57329362,204.09,204.07,17.10374363]
[1756487187879,17.10374363,204.15,204.08,17.10374363]
[1756487188187,20.67797672,204.14,204.07,0.68]
[1756487188387,3.57423309,204.13,204.08,17.10374363]
[1756487188560,3.57423309,204.13,204.09,17.10374363]
[1756487189385,3.57423309,204.13,204.09,32.00331504]
[1756487189577,3.57423309,204.13,204.09,14.89957141]
[1756487189766,3.57423309,204.13,204.09,32.00331504]
[1756487190275,17.10374363,204.11,204.09,10.0]
[1756487190482,3.57423309,204.1,204.09,10.0]
[1756487190655,3.57423309,204.1,204.06,17.10374363]
[1756487190656,20.67797672,204.11,204.06,17.10374363]
[1756487190858,3.57423309,204.1,204.06,17.10374363]
[1756487191257,17.82374363,204.09,204.0,26.69]
[1756487191563,26.0,204.16,204.05,17.10374363]
[1756487191564,3.57423309,204.08,204.05,17.10374363]
[1756487191767,3.57423309,204.07,204.05,0.69]
[1756487192081,0.72,204.13,204.05,17.10374363]
[1756487192082,3.59041548,204.06,204.05,17.10374363]
[1756487192289,0.72,204.13,204.05,17.10374363]
[1756487192290,3.59041548,204.1,204.05,17.79374363]
[1756487192609,3.59041548,204.09,204.06,17.10374363]
[1756487192710,3.59041548,204.08,204.07,17.79374363]
[1756487192900,3.59041548,204.12,204.07,17.79374363]
[1756487193075,3.59041548,204.11,204.08,17.79374363]
[1756487193264,17.10374363,204.15,204.04,17.10374363]
[1756487193265,17.10374363,204.09,204.04,17.10374363]
[1756487193471,3.59041548,204.08,204.02,17.10374363]
[1756487193694,3.59041548,204.08,204.04,17.10374363]
[1756487193862,3.59041548,204.07,204.02,23.59559401]
[1756487194069,3.59041548,204.06,204.03,17.79374363]
[1756487194266,3.59041548,204.05,204.04,14.28559401]
[1756487194468,3.59041548,204.11,204.05,13.59559401]
[1756487194770,3.6000682,204.1,204.08,0.14216157]
[1756487194991,4.69136766,204.19,204.09,42.81]
[1756487195175,3.60034698,204.18,204.09,42.81]
[1756487195360,3.60034698,204.17,204.09,42.81]
[1756487195560,3.60034698,204.16,204.1,14.28559401]
[1756487195801,3.60034698,204.15,204.13,17.10374363]
[1756487195974,3.60034698,204.14,204.13,17.10374363]
[1756487196162,3.60034698,204.18,204.13,17.79374363]
[1756487196363,3.60034698,204.17,204.14,17.79374363]
[1756487196607,3.60034698,204.16,204.15,42.08]
[1756487196766,26.0,204.12,203.95,17.13374363]
[1756487196971,17.10374363,204.02,203.95,17.82374363]
[1756487197185,17.10374363,204.02,203.95,0.03]
[1756487197186,17.10374363,203.99,203.95,0.03]
[1756487197367,3.60034698,203.98,203.95,0.03]
[1756487197567,3.60034698,203.97,203.95,10.03]
[1756487197870,3.59811673,203.96,203.95,10.72]
[1756487198182,20.70186036,204.0,203.95,10.03]
[1756487198388,20.70186036,203.99,203.95,10.03]
[1756487198696,3.59811673,203.98,203.95,10.03]
[1756487199069,3.59811673,203.97,203.95,10.03]
[1756487199270,3.59811673,203.96,203.95,10.03]
[1756487199488,20.70186036,203.96,203.95,10.03]
[1756487199682,3.59811673,203.96,203.95,10.72]
[1756487199892,20.70186036,203.96,203.95,10.03]
[1756487200887,3.59811673,203.96,203.95,10.03]
[1756487201394,3.59628646,203.96,203.95,10.03]
[1756487201588,3.97136766,204.04,203.95,10.03]
[1756487201589,3.97136766,204.04,203.95,41.41933764]
[1756487201884,17.10374363,204.03,203.96,13.59559401]
[1756487202190,17.10374363,204.01,203.96,13.59559401]
[1756487202499,17.10374363,204.03,203.97,17.10374363]
[1756487202668,17.10374363,203.99,203.95,0.03]
[1756487202874,17.10374363,203.99,203.97,43.02]
[1756487203190,17.82374363,204.03,203.97,43.02]
[1756487203567,0.72,204.03,203.98,17.10374363]
[1756487204387,21.07511129,204.04,203.98,17.10374363]
[1756487204583,3.97136766,204.04,204.0,17.10374363]
[1756487204987,3.97136766,204.04,204.0,27.10374363]
[1756487205188,17.10374363,204.02,204.0,10.0]
[1756487205378,17.82374363,204.01,203.97,42.96]
[1756487205586,0.72,204.0,203.96,43.0]
[1756487205777,17.10374363,204.0,203.96,43.0]
[1756487206097,0.72,204.02,203.96,43.0]
[1756487206300,17.10374363,204.0,203.96,43.0]
[1756487206597,0.72,204.02,203.96,60.10374363]
[1756487206785,21.07511129,204.04,203.98,17.10374363]
[1756487207095,17.10374363,204.02,203.96,60.10374363]
[1756487207269,3.97136766,204.04,203.95,0.03]
[1756487207270,17.10374363,204.01,203.95,0.03]
[1756487207471,17.10374363,204.0,203.96,41.06]
[1756487207774,17.10374363,204.01,203.96,41.06]
[1756487207976,17.10374363,204.0,203.96,41.06]
[1756487208188,17.10374363,203.99,203.97,42.96]
[1756487208368,0.72,204.0,203.97,10.0]
[1756487208573,17.10374363,203.99,203.97,52.94]
[1756487208789,3.97136766,204.04,203.97,10.0]
[1756487208973,17.10374363,204.0,203.97,52.92]
[1756487209297,17.82374363,203.99,203.97,52.92]
[1756487209477,2.0,204.05,203.97,52.92]
[1756487209478,17.10374363,204.0,203.97,52.92]
[1756487209673,17.10374363,204.02,203.97,52.92]
[1756487209889,17.82374363,204.02,203.97,52.92]
[1756487210178,17.10374363,204.04,203.98,17.10374363]
[1756487210380,19.82374363,204.05,203.99,17.10374363]
[1756487210690,19.82374363,204.05,204.01,17.10374363]
[1756487210691,2.0,204.05,204.01,17.10374363]
[1756487210892,2.0,204.05,204.04,30.84149921]
[1756487210893,4.0,204.05,204.04,30.84149921]
[1756487212178,4.0,204.05,204.04,0.14216157]
[1756487212392,4.0,204.05,204.04,73.68149921]
[1756487213703,3.97136766,204.1,204.08,13.59559401]
[1756487213900,3.97136766,204.1,204.09,60.0459052]
[1756487214706,3.97136766,204.1,204.09,73.64149921]
[1756487214902,0.97136766,204.1,204.09,73.64149921]
[1756487215104,0.97136766,204.1,204.09,56.53775558]
[1756487215291,0.97136766,204.1,204.09,73.64149921]
[1756487216313,0.97136766,204.1,204.09,94.59425468]
[1756487216483,5.44922885,204.14,204.13,39.59559401]
[1756487216683,2.44922885,204.14,204.13,100.0713831]
[1756487216904,2.44922885,204.14,204.13,99.58149921]
[1756487219010,2.44922885,204.14,204.13,179.18149921]
[1756487219807,0.72,204.25,204.14,0.14216157]
[1756487220010,0.72,204.25,204.22,17.10374363]
[1756487220226,0.06,204.37,204.23,73.31933764]
[1756487220389,0.72,204.32,204.28,30.69933764]
[1756487220710,0.72,204.32,204.25,0.14216157]
[1756487220711,17.10374363,204.32,204.25,0.14216157]
[1756487220882,0.69,204.28,204.26,59.74374363]
[1756487221085,0.69,204.27,204.26,73.33933764]
[1756487221283,0.06,204.37,204.26,73.33933764]
[1756487221496,0.69,204.28,204.26,73.33933764]
[1756487221703,0.69,204.28,204.27,17.10374363]
[1756487221900,0.69,204.27,204.21,17.10374363]
[1756487222112,0.69,204.27,204.25,17.10374363]
[1756487222329,0.69,204.31,204.27,13.59559401]
[1756487222696,0.89,204.29,204.28,17.10374363]
[1756487222897,0.69,204.28,204.23,13.59559401]
[1756487223090,0.69,204.27,204.24,59.74374363]
[1756487223296,0.89,204.29,204.26,17.10374363]
[1756487223511,0.69,204.28,204.25,17.10374363]
[1756487223708,0.69,204.27,204.26,42.64]
[1756487224698,0.69,204.27,204.22,17.10374363]
[1756487224900,0.69,204.27,204.24,17.10374363]
[1756487225102,0.06,204.28,204.25,42.58]
[1756487225317,0.06,204.28,204.26,42.58]
[1756487225524,0.06,204.28,204.27,42.58]
[1756487225727,0.75,204.28,204.27,42.58]
[1756487225905,0.06,204.28,204.27,73.27933764]
[1756487226101,0.06,204.28,204.27,56.31775558]
[1756487226420,0.06,204.28,204.27,73.42149921]
[1756487227414,0.06,204.28,204.27,67.60721139]
[1756487227615,0.06,204.28,204.27,56.17559401]
[1756487227812,0.75,204.28,204.27,42.58]
[1756487228032,12.03945581,204.28,204.27,42.56]
[1756487228508,0.75,204.28,204.27,42.56]
[1756487229906,12.03945581,204.28,204.27,42.56]
[1756487230526,12.03945581,204.28,204.2,11.28945581]
[1756487230837,11.28945581,204.22,204.21,42.52]
[1756487231016,11.97945581,204.22,204.2,42.52]
[1756487231333,0.69,204.21,204.2,42.52]
[1756487231836,11.97945581,204.21,204.13,11.28945581]
[1756487232003,0.69,204.2,204.14,42.52]
[1756487232208,11.97945581,204.2,204.14,53.80945581]
[1756487233224,11.28945581,204.18,204.14,42.52]
[1756487233439,17.06220127,204.18,204.12,17.06220127]
[1756487233621,0.69,204.17,204.13,42.48]
[1756487233809,17.06220127,204.16,204.13,42.48]
[1756487234131,17.75220127,204.16,204.13,42.48]
[1756487234636,17.06220127,204.16,204.13,42.48]
[1756487235430,0.69,204.15,204.1,13.59559401]
[1756487235612,17.06220127,204.12,204.11,42.42]
[1756487235812,17.75220127,204.12,204.11,42.42]
[1756487236213,17.06220127,204.13,204.11,42.42]
[1756487236638,17.06220127,204.12,204.11,42.42]
[1756487237632,17.75220127,204.12,204.11,42.42]
[1756487238332,0.69,204.12,204.02,26.0]
[1756487238542,17.06220127,204.07,204.03,42.4]
[1756487238732,17.75220127,204.06,204.03,42.4]
[1756487238937,17.06220127,204.04,204.03,42.4]
[1756487239130,17.75220127,204.04,204.03,42.4]
[1756487239443,17.06220127,204.05,204.03,42.4]
[1756487239632,17.06220127,204.04,204.03,42.4]
[1756487240144,17.75220127,204.04,204.03,42.4]
[1756487240748,17.06220127,204.04,204.03,42.4]
[1756487241120,17.06220127,204.05,204.03,42.4]
[1756487241317,17.06220127,204.12,204.04,31.37779528]
[1756487241516,17.06220127,204.11,204.05,17.06220127]
[1756487241819,17.06220127,204.11,204.04,14.31559401]
[1756487241820,17.06220127,204.1,204.04,31.37779528]
[1756487242540,17.75220127,204.12,204.06,17.06220127]
[1756487242743,17.06220127,204.09,203.98,0.72]
[1756487242944,17.06220127,204.07,204.01,17.06220127]
[1756487243154,17.06220127,204.08,204.02,17.06220127]
[1756487243325,17.06220127,204.08,204.03,0.03]
[1756487243526,0.69,204.07,204.04,42.42]
[1756487243727,17.75220127,204.07,204.04,42.4]
[1756487244345,17.06220127,204.07,204.04,42.4]
[1756487244561,17.75220127,204.09,204.04,42.4]
[1756487244743,0.69,204.09,204.04,42.4]
[1756487245352,0.69,204.13,204.06,17.06220127]
[1756487245563,0.69,204.13,204.07,17.06220127]
[1756487245866,17.06220127,204.11,204.08,42.34]
[1756487246070,17.06220127,204.09,204.03,0.03]
[1756487246278,0.69,204.1,204.03,42.41]
[1756487246448,17.06220127,204.08,204.03,42.41]
[1756487246779,17.06220127,204.09,204.03,59.47220127]
[1756487247267,0.69,204.1,204.03,59.47220127]
[1756487247470,17.06220127,204.12,204.06,17.06220127]
[1756487247657,17.06220127,204.11,204.07,42.36]
[1756487248057,17.75220127,204.11,204.07,42.36]
[1756487248261,17.06220127,204.13,204.07,59.42220127]
[1756487248466,17.06220127,204.12,204.07,42.36]
[1756487248854,0.69,204.18,204.1,17.06220127]
[1756487249073,17.06220127,204.16,204.11,42.34]
[1756487249448,0.69,204.18,204.11,42.34]
[1756487249449,17.06220127,204.17,204.11,59.40220127]
[1756487249652,17.75220127,204.18,204.12,17.06220127]
[1756487250260,17.06220127,204.18,204.11,42.34]
[1756487250475,17.06220127,204.18,204.12,17.06220127]
[1756487251472,17.12220127,204.2,204.12,0.71]
[1756487251666,17.06220127,204.19,204.13,59.32220127]
[1756487252076,0.06,204.2,204.15,30.65779528]
[1756487252255,0.06,204.2,204.16,17.06220127]
[1756487252572,0.06,204.2,204.17,42.22]
[1756487253153,0.06,204.2,204.18,14.30559401]
[1756487253354,0.06,204.2,204.19,24.89524758]
[1756487253756,0.06,204.2,204.19,25.60524758]
[1756487254373,0.06,204.2,204.15,26.0]
[1756487254589,0.06,204.2,204.18,42.4]
[1756487255578,0.06,204.2,204.18,53.69965357]
[1756487255761,0.06,204.2,204.16,11.29965357]
[1756487255957,0.06,204.2,204.17,42.38]
[1756487256258,0.06,204.2,204.13,13.59559401]
[1756487256259,0.06,204.2,204.16,11.29965357]
[1756487256460,11.94965357,204.19,204.17,42.38]
[1756487256781,0.65,204.19,204.17,42.38]
[1756487257365,0.06,204.2,204.17,42.38]
[1756487257569,0.06,204.2,204.17,53.67965357]
[1756487259076,0.06,204.2,204.17,42.38]
[1756487259676,0.06,204.2,204.15,24.89524758]
[1756487259883,0.06,204.2,204.16,42.3]
[1756487261201,11.94965357,204.19,204.07,79.6]
[1756487261398,11.29965357,204.18,204.12,11.29965357]
[1756487261601,11.29965357,204.18,204.13,42.2]
[1756487261800,11.29965357,204.17,204.13,42.2]
[1756487262304,11.94965357,204.17,204.14,42.23]
[1756487262503,11.29965357,204.15,204.14,0.03]
[1756487262701,11.94965357,204.15,204.14,0.03]
[1756487262904,0.06,204.2,204.14,0.03]
[1756487263089,0.06,204.2,204.15,27.8]
[1756487263292,0.65,204.19,204.15,27.8]
[1756487263613,11.94965357,204.18,204.15,27.8]
[1756487263916,11.29965357,204.16,204.14,0.03]
[1756487264097,11.94965357,204.17,204.14,0.03]
[1756487264304,11.94965357,204.15,204.14,0.03]
[1756487265497,16.84801261,204.15,204.14,0.03]
[1756487265708,0.06,204.2,204.14,12.03965357]
[1756487265910,11.35965357,204.2,204.15,42.2]
[1756487266404,11.29965357,204.19,204.15,42.2]
[1756487266710,11.29965357,204.19,204.15,47.0982342]
[1756487267083,12.00965357,204.2,204.15,47.0982342]
[1756487267283,11.35965357,204.2,204.15,47.0982342]
[1756487267515,0.06,204.2,204.15,58.39788777]
[1756487267718,0.06,204.2,204.17,11.29965357]
[1756487267917,0.06,204.2,204.16,0.71]
[1756487267918,0.06,204.2,204.19,11.29965357]
[1756487268221,0.06,204.2,204.19,42.22]
[1756487268402,4.9552753,204.28,204.19,42.22]
[1756487268403,0.06,204.28,204.2,13.59559401]
[1756487268602,0.06,204.28,204.24,11.29965357]
[1756487268813,0.06,204.28,204.22,13.59559401]
[1756487268814,0.06,204.28,204.25,42.22]
[1756487268999,11.29965357,204.26,204.24,42.24]
[1756487269191,11.35965357,204.28,204.24,42.24]
[1756487269820,11.29965357,204.27,204.21,16.1965734]
[1756487270123,11.29965357,204.26,204.22,42.24]
[1756487270290,11.29965357,204.25,204.23,42.22]
[1756487270629,0.06,204.28,204.15,4.89835904]
[1756487270630,11.94965357,204.24,204.15,4.89835904]
[1756487270794,11.94965357,204.24,204.16,53.49965357]
[1756487270795,11.29965357,204.21,204.16,53.49965357]
[1756487270996,11.29965357,204.2,204.15,4.89835904]
[1756487271228,11.29965357,204.2,204.16,42.2]
[1756487271597,11.29965357,204.21,204.16,42.2]
[1756487271800,11.94965357,204.21,204.16,42.2]
[1756487272124,11.29965357,204.2,204.17,42.2]
[1756487272414,11.94965357,204.19,204.14,4.92857671]
[1756487272599,11.29965357,204.18,204.16,42.18]
[1756487272987,0.65,204.17,204.16,42.18]
[1756487273191,11.29965357,204.18,204.16,42.18]
[1756487273412,0.65,204.19,204.16,42.18]
[1756487273716,11.94965357,204.19,204.16,42.18]
[1756487273896,11.29965357,204.2,204.16,42.18]
[1756487274099,0.65,204.22,204.16,42.18]
[1756487274100,11.29965357,204.21,204.16,42.18]
[1756487274503,11.94965357,204.21,204.17,4.89787921]
[1756487274816,11.29965357,204.19,204.16,47.07800755]
[1756487277798,0.65,204.26,204.17,11.96965357]
[1756487279841,11.29965357,204.19,204.15,46.89814983]
[1756487280308,0.65,204.22,204.15,46.89814983]
[1756487280719,11.29965357,204.21,204.15,58.1978034]
[1756487280924,11.29965357,204.23,204.16,11.96965357]
[1756487281098,11.29965357,204.22,204.16,0.67]
[1756487281521,0.71,204.25,204.16,0.67]
[1756487281698,0.71,204.25,204.16,11.96965357]
[1756487281699,11.29965357,204.22,204.16,11.96965357]
[1756487281899,0.71,204.24,204.17,4.89787921]
[1756487282099,11.29965357,204.22,204.18,41.92]
[1756487282545,0.06,204.26,204.21,11.29965357]
[1756487282704,0.06,204.26,204.24,11.29965357]
[1756487283029,0.06,204.26,204.25,53.19965357]
[1756487283240,0.06,204.26,204.25,41.92]
[1756487284026,0.06,204.26,204.25,46.81596083]
[1756487284225,0.06,204.26,204.25,47.48596083]
[1756487284425,0.06,204.26,204.25,46.81596083]
[1756487284805,0.06,204.28,204.26,13.59559401]
[1756487285014,0.06,204.28,204.27,24.89524758]
[1756487285223,0.06,204.28,204.27,25.56524758]
[1756487285607,1e-08,204.28,204.27,25.70740915]
[1756487286014,1e-08,204.28,204.27,30.60289062]
[1756487287129,1e-08,204.29,204.28,13.73775558]
[1756487287329,8.16427129,204.35,204.32,13.59559401]
[1756487287533,8.16427129,204.35,204.34,24.89524758]
[1756487288440,8.16427129,204.35,204.34,29.78905202]
[1756487288744,1e-08,204.37,204.36,39.73775558]
[1756487288942,1e-08,204.4,204.39,39.73775558]
[1756487289156,1e-08,204.4,204.39,92.89740915]
[1756487289362,1e-08,204.4,204.39,93.56740915]
[1756487289830,1e-08,204.4,204.35,0.81216157]
[1756487290135,1e-08,204.4,204.37,11.29965357]
[1756487290336,1e-08,204.4,204.39,11.29965357]
[1756487290525,1e-08,204.4,204.36,13.59559401]
[1756487290728,0.71,204.39,204.37,41.86]
[1756487290949,0.71,204.39,204.35,37.29965357]
[1756487291134,0.71,204.38,204.36,41.84]
[1756487291336,0.71,204.38,204.35,26.0]
[1756487291532,12.00965357,204.37,204.32,13.59559401]
[1756487291734,11.29965357,204.35,204.27,13.59559401]
[1756487291949,11.29965357,204.35,204.3,11.29965357]
[1756487292138,0.71,204.34,204.31,41.84]
[1756487292559,0.71,204.33,204.25,13.59559401]
[1756487292755,12.00965357,204.33,204.27,13.59559401]
[1756487292935,12.00965357,204.33,204.27,24.89524758]
[1756487293139,11.29965357,204.32,204.27,13.59559401]
[1756487293456,0.71,204.32,204.27,24.89524758]
[1756487293853,0.71,204.32,204.27,29.79068714]
[1756487294053,1e-08,204.4,204.27,29.79068714]
[1756487294260,11.29965357,204.35,204.29,11.29965357]
[1756487294551,11.29965357,204.33,204.3,41.76]
[1756487294766,0.71,204.34,204.3,41.76]
[1756487295063,11.29965357,204.35,204.3,41.76]
[1756487295563,0.71,204.34,204.31,4.89452302]
[1756487295773,12.00965357,204.34,204.31,4.89452302]
[1756487296343,11.29965357,204.34,204.31,4.89452302]
[1756487296552,11.29965357,204.35,204.31,4.89452302]
[1756487296760,26.71000001,204.4,204.32,11.29965357]
[1756487297074,11.29965357,204.37,204.33,41.7]
[1756487297247,12.00965357,204.37,204.33,41.7]
[1756487297744,11.29965357,204.38,204.34,4.89380444]
[1756487297968,0.71,204.37,204.34,4.89380444]
[1756487298171,11.29965358,204.4,204.34,16.19345801]
[1756487299042,1e-08,204.4,204.35,11.29965357]
[1756487299277,1e-08,204.4,204.37,4.89308606]
[1756487299575,1e-08,204.4,204.36,46.53330573]
[1756487299867,11.29965357,204.38,204.37,41.62]
[1756487300072,12.00965357,204.38,204.37,41.62]
[1756487300547,12.00965357,204.38,204.33,79.6]
[1756487300745,11.29965357,204.35,204.34,41.6]
[1756487300952,0.71,204.37,204.34,41.6]
[1756487300953,11.29965357,204.36,204.34,41.6]
[1756487301464,11.29965357,204.36,204.34,46.49379421]
[1756487301870,11.29965357,204.35,204.34,41.6]
[1756487303073,11.29965357,204.35,204.34,46.49380444]
[1756487303556,11.29965357,204.37,204.34,46.49380444]
[1756487303757,1e-08,204.4,204.34,46.49380444]
[1756487303967,11.29965357,204.38,204.34,46.49380444]
[1756487304165,12.00965357,204.38,204.34,46.49380444]
[1756487304367,11.29965357,204.37,204.34,46.49380444]
[1756487305580,12.00965357,204.36,204.35,41.5]
[1756487306587,11.29965357,204.36,204.35,41.5]
[1756487307264,11.29965357,204.37,204.35,41.5]
[1756487307467,11.29965357,204.37,204.32,4.89407468]
[1756487307682,12.00965357,204.36,204.31,18.49008138]
[1756487307868,12.00965357,204.35,204.32,41.42]
[1756487308175,11.29965357,204.36,204.32,41.42]
[1756487308565,12.00965357,204.36,204.32,41.42]
[1756487308985,12.00965357,204.36,204.32,46.31406081]
[1756487309291,1e-08,204.4,204.33,25.56524758]
[1756487309488,11.29965358,204.4,204.34,11.29965357]
[1756487309676,11.29965357,204.39,204.35,41.36]
[1756487310378,11.29965358,204.4,204.35,0.67]
[1756487310562,11.29965357,204.38,204.36,41.34]
[1756487310768,11.95965357,204.38,204.36,41.34]
[1756487310969,11.95965357,204.37,204.36,41.34]
[1756487314463,11.95965357,204.37,204.32,4.89421317]
[1756487314673,0.66,204.37,204.33,41.22]
[1756487314885,11.29965357,204.37,204.33,41.22]
[1756487315192,11.29965358,204.4,204.34,11.96965357]
[1756487315492,1e-08,204.4,204.35,24.89524758]
[1756487315674,1e-08,204.4,204.36,53.18965357]
[1756487316299,1e-08,204.4,204.36,41.89]
[1756487316588,1e-08,204.4,204.37,46.11308606]
[1756487317697,1e-08,204.4,204.39,11.29965357]
[1756487318070,1e-08,204.4,204.39,25.56524758]
[1756487318989,1e-08,204.4,204.39,30.60001642]
[1756487320600,1e-08,204.4,204.39,46.01260727]
[1756487320791,1e-08,204.4,204.39,45.97260727]
[1756487322104,11.95965358,204.4,204.35,0.03]
[1756487322267,11.29965357,204.37,204.35,0.03]
[1756487322467,0.66,204.39,204.35,41.17]
[1756487322688,11.29965358,204.4,204.35,46.0635522]
[1756487323084,11.29965357,204.38,204.36,41.16]
[1756487323385,1e-08,204.4,204.36,41.16]
[1756487323386,1e-08,204.4,204.37,0.67]
[1756487323586,1e-08,204.4,204.37,11.96965357]
[1756487323793,1e-08,204.4,204.37,11.29965357]
[1756487323987,1e-08,204.4,204.39,11.29965357]
[1756487324171,1e-08,204.4,204.39,52.45965357]
[1756487324498,1e-08,204.4,204.39,66.86740915]
[1756487325194,1e-08,204.4,204.39,71.76001642]
[1756487325768,1e-08,204.4,204.39,60.46036285]
[1756487326494,1e-08,204.4,204.39,71.70001642]
[1756487326902,1e-08,204.4,204.37,4.89308606]
[1756487327299,0.66,204.39,204.38,41.3]
[1756487327903,11.95965357,204.39,204.35,0.03]
[1756487328085,11.29965357,204.39,204.36,41.32]
[1756487328595,11.95965357,204.39,204.36,41.32]
[1756487328983,11.29965358,204.4,204.37,4.89308606]
[1756487329180,1e-08,204.4,204.38,41.28]
[1756487329688,0.66,204.39,204.38,41.28]
[1756487329889,11.29965358,204.4,204.38,41.28]
[1756487330089,11.95965358,204.4,204.38,41.28]
[1756487330704,11.29965357,204.39,204.38,41.28]
[1756487331402,11.95965357,204.39,204.38,41.28]
[1756487332005,0.66,204.39,204.38,41.28]
[1756487332798,0.66,204.39,204.37,41.18]
[1756487332799,11.95965357,204.39,204.37,41.18]
[1756487333001,11.95965357,204.38,204.37,41.18]
[1756487333605,11.29965357,204.39,204.37,41.18]
[1756487333986,11.95965357,204.39,204.37,41.18]
[1756487334511,11.29965357,204.38,204.37,41.18]
[1756487336609,11.29965357,204.38,204.37,41.21]